bitfinex-derivatives/quotes_BTCF0:USTF0_20251230
["timestamp","ask_amount","ask_price","bid_price","bid_amount"]
[1767116416201,0.05652,88690.0,88676.0,0.01145819]
[1767116416398,0.05652,88690.0,88659.0,0.04043006]
[1767116416594,0.16803305,88669.0,88640.0,0.05754]
[1767116416798,0.0112914,88659.0,88640.0,0.05754]
[1767116417301,0.17932425,88660.0,88640.0,0.22557305]
[1767116417604,0.0114605,88659.0,88641.0,0.0001692]
[1767116417907,0.0001692,88659.0,88641.0,0.0001692]
[1767116418196,0.0001692,88659.0,88641.0,0.0114627]
[1767116418704,0.0001692,88659.0,88641.0,0.0001692]
[1767116420097,0.0114605,88659.0,88642.0,0.15248]
[1767116420398,0.0001692,88659.0,88642.0,0.15248]
[1767116421102,0.0112931,88646.0,88627.0,0.05656]
[1767116421403,0.011293,88646.0,88628.0,0.09592]
[1767116422005,0.00012606,88645.0,88628.0,0.0960892]
[1767116423305,0.00012606,88645.0,88630.0,0.16803305]
[1767116423508,0.0001692,88659.0,88630.0,0.16803305]
[1767116423805,0.0112918,88655.0,88630.0,0.17932795]
[1767116423992,0.0001692,88659.0,88630.0,0.17932795]
[1767116424597,0.0001692,88659.0,88630.0,0.0112949]
[1767116424897,0.0112925,88650.0,88630.0,0.0112949]
[1767116425497,0.0112925,88650.0,88628.0,0.0960892]
[1767116425808,0.0112925,88650.0,88629.0,0.0112951]
[1767116426407,0.0001692,88659.0,88632.0,0.0112947]
[1767116428103,0.0112924,88651.0,88632.0,0.0112947]
[1767116429195,0.0112924,88651.0,88629.0,0.0112951]
[1767116429601,0.0112924,88651.0,88628.0,0.0960892]
[1767116429602,0.0112924,88651.0,88632.0,0.0112947]
[1767116431212,0.0114606,88659.0,88638.0,0.0112939]
[1767116431411,0.0114606,88659.0,88639.0,0.15256]
[1767116431611,0.0001692,88659.0,88639.0,0.15256]
[1767116431813,0.0112929,88647.0,88628.0,0.0114644]
[1767116432015,0.0112929,88647.0,88630.0,0.0112949]
[1767116432313,0.0112929,88647.0,88629.0,0.15256]
[1767116433707,0.0112929,88647.0,88628.0,0.0114644]
[1767116433708,0.0112932,88645.0,88628.0,0.0001692]
[1767116433908,0.0112917,88656.0,88629.0,0.1236]
[1767116434214,0.0112941,88638.0,88628.0,0.0001692]
[1767116434511,0.0112923,88652.0,88626.0,0.0566]
[1767116434512,0.0112951,88629.0,88626.0,0.0566]
[1767116434710,0.0112948,88632.0,88626.0,2e-08]
[1767116434914,0.0112943,88636.0,88624.0,0.0566]
[1767116435119,0.0112939,88639.0,88624.0,0.0566]
[1767116435614,0.0112942,88637.0,88624.0,0.0566]
[1767116435817,0.0112945,88635.0,88624.0,0.0566]
[1767116436118,0.011295,88631.0,88618.0,0.0566]
[1767116436411,0.0112939,88639.0,88608.0,0.0112978]
[1767116436718,0.0112958,88624.0,88609.0,0.15256]
[1767116437016,0.0112958,88624.0,88610.0,0.15256]
[1767116437813,0.0001692,88625.0,88610.0,0.15256]
[1767116438208,0.011291,88662.0,88619.0,0.0112964]
[1767116438402,0.17620327,88658.0,88619.0,0.0566]
[1767116438619,0.0112932,88644.0,88624.0,0.0112956]
[1767116438808,0.0112936,88642.0,88624.0,0.0112956]
[1767116439209,0.0114628,88642.0,88624.0,0.0114648]
[1767116439608,0.0001692,88642.0,88624.0,0.0001692]
[1767116439807,0.0001692,88642.0,88627.0,0.0112953]
[1767116440613,0.0112938,88640.0,88624.0,0.0001692]
[1767116441112,0.0001692,88642.0,88624.0,0.0001692]
[1767116441319,0.0112921,88653.0,88633.0,0.0112945]
[1767116441511,0.0112921,88653.0,88635.0,0.0112942]
[1767116442421,0.0001692,88653.0,88637.0,0.011294]
[1767116442613,0.0001692,88653.0,88641.0,0.0112936]
[1767116445117,0.02478777,88652.0,88641.0,0.0112936]
[1767116445320,0.05664,88662.0,88644.0,0.0112931]
[1767116445626,0.0112911,88661.0,88635.0,0.0001692]
[1767116445922,0.0112922,88652.0,88635.0,0.0001692]
[1767116446309,0.0112922,88652.0,88636.0,0.05664]
[1767116446509,0.0114614,88652.0,88637.0,0.096]
[1767116449610,0.0112925,88650.0,88637.0,0.096]
[1767116450120,0.0112925,88650.0,88635.0,0.0001692]
[1767116450313,0.0112925,88650.0,88636.0,0.15256]
[1767116451014,0.0001692,88652.0,88639.0,0.0112938]
[1767116451814,0.0001692,88652.0,88636.0,0.1638542]
[1767116452216,0.0001692,88652.0,88638.0,0.0112939]
[1767116453721,0.0114615,88652.0,88636.0,0.15256]
[1767116455233,0.0001692,88652.0,88639.0,0.0112938]
[1767116455415,0.0001692,88652.0,88636.0,0.15256]
[1767116456220,0.0001692,88652.0,88642.0,0.0112934]
[1767116457023,0.05664,88662.0,88636.0,0.15256]
[1767116457210,0.0112913,88659.0,88636.0,0.15256]
[1767116457415,0.02470824,88658.0,88642.0,0.0112934]
[1767116457615,0.02470824,88657.0,88642.0,0.0112934]
[1767116457823,0.02470824,88656.0,88642.0,0.0112934]
[1767116458126,0.02470824,88655.0,88642.0,0.0112934]
[1767116458325,0.02470824,88654.0,88642.0,0.0112934]
[1767116458625,0.02470824,88653.0,88642.0,0.0112934]
[1767116458820,0.02470824,88653.0,88636.0,0.15256]
[1767116458821,0.02470824,88652.0,88644.0,0.0112932]
[1767116459025,0.0001692,88658.0,88641.0,0.0678935]
[1767116459215,0.0112916,88657.0,88641.0,0.0678935]
[1767116460117,0.0001692,88658.0,88644.0,0.0112932]
[1767116460328,0.0112912,88660.0,88644.0,0.0112932]
[1767116462516,0.0112915,88658.0,88641.0,0.0566]
[1767116462717,0.00016893,88661.0,88641.0,0.0566]
[1767116463518,0.0112916,88657.0,88641.0,0.0566]
[1767116463916,0.0112919,88655.0,88641.0,0.0566]
[1767116464620,0.00016893,88661.0,88641.0,0.0566]
[1767116464621,0.0112912,88660.0,88641.0,0.0566]
[1767116464826,0.00016893,88661.0,88648.0,0.0112927]
[1767116465226,0.0112914,88659.0,88642.0,0.0112934]
[1767116465426,0.0112916,88657.0,88642.0,0.0112934]
[1767116466026,0.0112913,88660.0,88644.0,0.0112932]
[1767116466720,0.00016893,88661.0,88648.0,0.0112926]
[1767116466922,0.0112896,88673.0,88649.0,0.15256]
[1767116467116,0.0112896,88673.0,88656.0,0.0112917]
[1767116467316,0.0112899,88671.0,88653.0,0.011292]
[1767116468021,0.0112899,88671.0,88653.0,0.0114612]
[1767116468416,0.0112902,88668.0,88653.0,0.0001692]
[1767116468621,0.01129,88670.0,88654.0,0.0112919]
[1767116468922,0.01129,88670.0,88653.0,0.0001692]
[1767116469227,0.09596,88676.0,88653.0,0.0001692]
[1767116470332,0.0112901,88669.0,88653.0,0.0001692]
[1767116471038,0.09596,88676.0,88654.0,0.0112919]
[1767116471235,0.0112897,88672.0,88653.0,0.0001692]
[1767116472031,0.01129,88669.0,88653.0,0.0114612]
[1767116473434,0.0112897,88672.0,88653.0,0.0114612]
[1767116473632,0.0244398,88671.0,88653.0,0.0114612]
[1767116473828,0.0244398,88670.0,88653.0,0.0114612]
[1767116474134,0.0112897,88672.0,88653.0,0.0114612]
[1767116474324,0.02443962,88671.0,88655.0,0.0112917]
[1767116474523,0.02443962,88670.0,88655.0,0.0112917]
[1767116474724,0.0112897,88672.0,88655.0,0.0112917]
[1767116475031,0.02443637,88671.0,88655.0,0.0112917]
[1767116475230,0.02443637,88670.0,88655.0,0.0112917]
[1767116475435,0.0112897,88672.0,88655.0,0.0112917]
[1767116475628,0.02443457,88671.0,88655.0,0.0112917]
[1767116475925,0.02443457,88670.0,88655.0,0.0112917]
[1767116476126,0.0112897,88672.0,88655.0,0.0112917]
[1767116476326,0.02443214,88671.0,88655.0,0.0112917]
[1767116476526,0.02443214,88670.0,88655.0,0.0112917]
[1767116476828,0.02443195,88669.0,88655.0,0.0112917]
[1767116477127,0.0112897,88672.0,88655.0,0.0112917]
[1767116477328,0.02443159,88671.0,88655.0,0.0112917]
[1767116477631,0.02443159,88670.0,88655.0,0.0112917]
[1767116477832,0.02443159,88669.0,88655.0,0.0112917]
[1767116478034,0.0112897,88672.0,88655.0,0.0112917]
[1767116478227,0.02443022,88671.0,88655.0,0.0112917]
[1767116478424,0.0566,88678.0,88653.0,0.0001692]
[1767116478735,0.10283436,88683.0,88666.0,0.0112904]
[1767116479134,0.0112885,88682.0,88662.0,0.0112908]
[1767116479633,0.0112885,88682.0,88664.0,0.0112906]
[1767116480429,0.0112885,88682.0,88666.0,0.0112903]
[1767116482636,0.10283436,88683.0,88666.0,0.0112903]
[1767116483137,0.11412266,88683.0,88666.0,0.0112903]
[1767116483337,0.11412266,88683.0,88660.0,0.15256]
[1767116483534,0.11412266,88683.0,88665.0,0.0112904]
[1767116486540,0.00687436,88683.0,88660.0,0.32072022]
[1767116486740,0.0566,88689.0,88670.0,0.17945002]
[1767116486936,0.0566,88689.0,88671.0,0.0001692]
[1767116487640,0.0112884,88682.0,88671.0,0.0001692]
[1767116488243,0.011288,88685.0,88671.0,0.0001692]
[1767116489842,0.0566,88689.0,88671.0,0.0001692]
[1767116492244,0.0112881,88685.0,88671.0,0.0001692]
[1767116492443,0.0112877,88688.0,88671.0,0.0114589]
[1767116493146,0.0112877,88688.0,88671.0,0.0001692]
[1767116495942,0.0112879,88686.0,88671.0,0.0001692]
[1767116498650,0.0566,88689.0,88671.0,0.0114589]
[1767116499651,0.011288,88686.0,88671.0,0.0001692]
[1767116500445,0.0566,88689.0,88671.0,0.0001692]
[1767116500751,0.011288,88685.0,88671.0,0.0001692]
[1767116501743,0.0112883,88683.0,88671.0,0.0001692]
[1767116502854,0.0112879,88686.0,88671.0,0.0001692]
[1767116503048,0.0112882,88684.0,88671.0,0.0001692]
[1767116503253,0.0112884,88682.0,88671.0,0.0001692]
[1767116503553,0.0112889,88678.0,88660.0,0.09596]
[1767116503753,0.0112905,88666.0,88659.0,0.05656]
[1767116505153,0.0112901,88669.0,88659.0,0.05656]
[1767116506954,0.16816022,88670.0,88659.0,0.03156]
[1767116507249,0.01129,88669.0,88659.0,0.03156]
[1767116507452,0.16816022,88670.0,88656.0,0.05656]
[1767116507753,0.0112913,88660.0,88646.0,0.05656]
[1767116507940,0.17945152,88660.0,88646.0,0.05656]
[1767116508949,0.0112916,88657.0,88646.0,0.05656]
[1767116509856,0.0112919,88655.0,88644.0,0.0001692]
[1767116511158,0.0112922,88653.0,88644.0,0.0001692]
[1767116511858,0.0112917,88656.0,88644.0,0.0001692]
[1767116512054,0.011292,88654.0,88636.0,0.0112941]
[1767116512254,0.011292,88654.0,88637.0,0.05656]
[1767116513155,0.16816022,88650.0,88637.0,0.0567292]
[1767116513457,0.0112929,88647.0,88632.0,0.05656]
[1767116513960,0.16816022,88650.0,88632.0,0.05656]
[1767116514258,0.16816022,88650.0,88632.0,0.0567292]
[1767116514759,0.0112926,88649.0,88632.0,0.0567292]
[1767116515158,0.0112926,88649.0,88633.0,0.0112946]
[1767116515758,0.16816022,88650.0,88633.0,0.0112946]
[1767116516161,0.07417771,88684.0,88657.0,0.0112915]
[1767116516162,0.011289,88677.0,88657.0,0.0112915]
[1767116516362,0.0112896,88673.0,88660.0,0.16816022]
[1767116516661,0.0112892,88676.0,88657.0,0.0566]
[1767116517061,0.0112892,88676.0,88657.0,0.0678916]
[1767116517359,0.16816022,88670.0,88657.0,0.0566]
[1767116517664,0.0112915,88658.0,88651.0,0.0566]
[1767116517857,0.17945132,88661.0,88649.0,0.0566]
[1767116518158,0.16816022,88661.0,88637.0,0.09596]
[1767116518355,0.26412022,88661.0,88640.0,0.0001692]
[1767116518558,0.0001692,88658.0,88640.0,0.0001692]
[1767116518755,0.0001692,88658.0,88643.0,0.0112932]
[1767116521465,0.0001692,88658.0,88648.0,0.0112926]
[1767116522566,0.0001692,88658.0,88644.0,0.0112931]
[1767116523366,0.0001692,88658.0,88646.0,0.0112929]
[1767116524368,0.16816022,88670.0,88648.0,0.16816022]
[1767116524569,0.16816022,88670.0,88640.0,0.0001692]
[1767116524570,0.09596,88669.0,88660.0,0.16816022]
[1767116524867,0.16816022,88680.0,88654.0,0.0112919]
[1767116524868,0.05664,88668.0,88654.0,0.0112919]
[1767116525066,0.0112896,88673.0,88654.0,0.0112919]
[1767116525268,0.05664,88672.0,88654.0,0.0112919]
[1767116525469,0.0001692,88672.0,88660.0,0.16816022]
[1767116526571,0.0001692,88672.0,88655.0,0.0679318]
[1767116526965,0.0112907,88664.0,88634.0,0.06086952]
[1767116527168,0.0112907,88664.0,88632.0,0.05664]
[1767116527169,0.0112926,88649.0,88632.0,0.05664]
[1767116527363,0.0112929,88647.0,88632.0,0.1526]
[1767116528367,0.0001692,88648.0,88632.0,0.1526]
[1767116529172,0.0001692,88648.0,88636.0,0.0112941]
[1767116530580,0.0001692,88648.0,88632.0,0.1526]
[1767116530880,0.0112932,88644.0,88632.0,0.1526]
[1767116531078,0.0112928,88647.0,88632.0,0.1526]
[1767116531268,0.0001692,88648.0,88632.0,0.1638947]
[1767116534778,0.0001692,88648.0,88632.0,0.1526]
[1767116535373,0.0001692,88648.0,88631.0,0.0001692]
[1767116535678,0.0112936,88642.0,88631.0,0.0001692]
[1767116535978,0.0112945,88634.0,88627.0,0.05664]
[1767116536171,0.0112945,88634.0,88623.0,0.09596]
[1767116536172,0.09596,88642.0,88609.0,0.06086952]
[1767116536371,0.0112943,88636.0,88610.0,0.15264]
[1767116536581,0.0112957,88625.0,88611.0,0.09596]
[1767116536880,0.0112953,88628.0,88611.0,0.09596]
[1767116537081,0.0114645,88628.0,88611.0,0.0961292]
[1767116537679,0.0001692,88628.0,88612.0,0.0112973]
[1767116538686,0.0114645,88628.0,88611.0,0.0961292]
[1767116540976,0.0001692,88628.0,88611.0,0.0001692]
[1767116541176,0.0112969,88616.0,88611.0,1e-07]
[1767116541480,0.0001692,88628.0,88611.0,1e-07]
[1767116542183,0.0112963,88620.0,88611.0,1e-07]
[1767116543081,0.011297,88615.0,88611.0,1e-07]
[1767116543980,0.0112969,88616.0,88611.0,1e-07]
[1767116544293,0.05668,88619.0,88611.0,1e-07]
[1767116544784,0.0112965,88618.0,88611.0,1e-07]
[1767116546180,0.05668,88619.0,88611.0,1e-07]
[1767116546588,0.0679765,88619.0,88611.0,1e-07]
[1767116547284,0.0112968,88617.0,88611.0,1e-07]
[1767116547884,0.05668,88619.0,88591.0,0.0112999]
[1767116548095,0.0112996,88594.0,88575.0,0.06086952]
[1767116548279,0.0112996,88595.0,88571.0,0.0113025]
[1767116548478,0.0112999,88592.0,88569.0,0.06086952]
[1767116548685,0.0113002,88589.0,88567.0,0.0113029]
[1767116548885,0.05668,88588.0,88570.0,0.0113026]
[1767116549079,0.0001693,88587.0,88570.0,0.0113026]
[1767116549281,0.00010549,88586.0,88570.0,0.0113026]
[1767116549878,0.00010549,88586.0,88569.0,0.00011311]
[1767116550083,0.00010549,88586.0,88576.0,0.0113018]
[1767116551092,0.00010549,88586.0,88572.0,0.0113023]
[1767116551390,0.05668,88589.0,88579.0,0.0113014]
[1767116551586,0.05668,88590.0,88579.0,0.0113014]
[1767116551781,0.0112953,88628.0,88572.0,0.0113024]
[1767116551983,0.011296,88622.0,88579.0,0.0113015]
[1767116552184,0.011296,88622.0,88565.0,0.0113033]
[1767116552185,0.0112994,88596.0,88574.0,0.011302]
[1767116552379,0.15268,88595.0,88563.0,0.05668]
[1767116552683,0.15268,88595.0,88561.0,0.096]
[1767116552684,0.0113,88592.0,88561.0,0.096]
[1767116553084,0.0112969,88616.0,88561.0,0.096]
[1767116553085,0.022594,88615.0,88578.0,0.0113015]
[1767116553288,0.0001693,88605.0,88588.0,0.00011311]
[1767116553480,0.0112988,88601.0,88588.0,0.00011311]
[1767116554692,0.05672,88600.0,88588.0,0.00011311]
[1767116554891,0.15272,88600.0,88588.0,0.00011311]
[1767116555086,0.0112988,88601.0,88588.0,0.00011311]
[1767116555293,0.15268,88600.0,88588.0,0.00011311]
[1767116555493,0.0112988,88601.0,88588.0,0.00011311]
[1767116555685,0.05668,88599.0,88588.0,0.00011311]
[1767116556186,0.05668,88598.0,88588.0,0.00011311]
[1767116556390,0.15268,88598.0,88588.0,0.00011311]
[1767116556793,0.0112983,88604.0,88588.0,0.00011311]
[1767116557198,0.15268,88603.0,88588.0,0.00011311]
[1767116557389,0.15268,88602.0,88588.0,0.00011311]
[1767116557700,0.0112987,88601.0,88588.0,0.00011311]
[1767116558090,0.15268,88602.0,88588.0,0.00011311]
[1767116558590,0.0001693,88605.0,88588.0,0.00011311]
[1767116559102,0.0112988,88601.0,88588.0,0.00011311]
[1767116559896,0.15272,88600.0,88588.0,0.00011311]
[1767116560094,0.011299,88599.0,88571.0,0.096]
[1767116560296,0.0001693,88605.0,88582.0,0.0113011]
[1767116560495,0.0112989,88600.0,88582.0,0.0113011]
[1767116560700,0.15272,88599.0,88582.0,0.0113011]
[1767116561802,0.15272,88598.0,88571.0,0.096]
[1767116561988,0.09604,88597.0,88585.0,0.0113007]
[1767116562298,0.15272,88597.0,88585.0,0.0113007]
[1767116562599,0.15272,88597.0,88582.0,0.0113011]
[1767116563300,0.1640193,88597.0,88578.0,0.0113015]
[1767116563602,0.1640194,88596.0,88565.0,0.0113033]
[1767116563787,0.0001693,88589.0,88565.0,0.1073433]
[1767116563992,0.0001693,88589.0,88566.0,0.0113031]
[1767116564186,0.0001693,88589.0,88579.0,0.0113014]
[1767116565202,0.0001693,88589.0,88580.0,0.0113014]
[1767116565403,0.0001693,88589.0,88583.0,0.0113009]
[1767116565595,0.0001693,88589.0,88580.0,0.0113013]
[1767116565901,0.09604,88595.0,88585.0,0.0113006]
[1767116566097,0.09604,88595.0,88566.0,0.0113031]
[1767116566098,0.09604,88601.0,88586.0,0.0113006]
[1767116566297,0.05668,88600.0,88586.0,0.0113006]
[1767116566501,0.05668,88599.0,88583.0,0.0113009]
[1767116566903,0.05668,88599.0,88582.0,0.0001693]
[1767116567406,0.0962093,88600.0,88582.0,0.0001693]
[1767116567407,0.0001693,88600.0,88582.0,0.0001693]
[1767116568405,0.0001693,88600.0,88585.0,0.0113007]
[1767116568615,0.0001693,88600.0,88582.0,0.0001693]
[1767116570210,0.0001693,88600.0,88588.0,0.0113003]
[1767116570702,0.06071923,88629.0,88582.0,0.0001693]
[1767116570903,0.0112957,88625.0,88605.0,0.0112981]
[1767116571207,0.177385,88628.0,88608.0,0.0112977]
[1767116571208,0.120705,88624.0,88608.0,0.0112977]
[1767116571408,0.024665,88623.0,88609.0,0.0112976]
[1767116571603,0.09604,88624.0,88609.0,0.0112976]
[1767116571808,0.0001693,88625.0,88609.0,0.0112976]
[1767116572011,0.15272,88624.0,88607.0,0.0001693]
[1767116572713,0.15272,88624.0,88608.0,0.0112978]
[1767116574210,0.0001693,88625.0,88610.0,0.0112975]
[1767116574414,0.05668,88623.0,88610.0,0.0112975]
[1767116574615,0.05668,88623.0,88607.0,0.0001693]
[1767116575310,0.05668,88623.0,88607.0,0.0114671]
[1767116577208,0.05668,88623.0,88610.0,0.0112975]
[1767116580019,0.05668,88623.0,88607.0,0.0114672]
[1767116580516,0.05668,88623.0,88609.0,0.0112976]
[1767116581508,0.0001693,88625.0,88609.0,0.0112976]
[1767116581717,0.05668,88622.0,88609.0,0.0112976]
[1767116581910,0.0001693,88625.0,88607.0,0.0001693]
[1767116582113,0.05668,88624.0,88607.0,0.0001693]
[1767116582316,0.0112967,88617.0,88607.0,0.0001693]
[1767116582515,0.05668,88624.0,88607.0,0.0001693]
[1767116584216,0.0112969,88616.0,88607.0,0.0001693]
[1767116584620,0.0112965,88619.0,88607.0,0.0001693]
[1767116586009,0.05668,88624.0,88573.0,0.08087261]
[1767116586215,0.0112974,88612.0,88575.0,0.011302]
[1767116586514,0.0112977,88609.0,88569.0,0.096]
[1767116586711,0.096,88608.0,88569.0,0.1073027]
[1767116586908,0.02463556,88607.0,88569.0,0.1073028]
[1767116587107,0.0112997,88594.0,88579.0,0.0001693]
[1767116587314,0.15268,88593.0,88579.0,0.0001693]
[1767116587509,0.05668,88600.0,88583.0,0.011301]
[1767116588114,0.05668,88600.0,88585.0,0.0113006]
[1767116588525,0.05668,88600.0,88582.0,0.0113011]
[1767116588922,0.0679789,88600.0,88580.0,0.0113014]
[1767116590425,0.05668,88600.0,88579.0,0.0001693]
[1767116590617,0.0112991,88598.0,88579.0,0.0001693]
[1767116591017,0.0113008,88585.0,88569.0,0.096]
[1767116591219,0.05668,88589.0,88569.0,0.096]
[1767116591914,0.05668,88589.0,88570.0,0.0001693]
[1767116592228,0.0113007,88586.0,88570.0,0.0001693]
[1767116592427,0.0113011,88583.0,88570.0,0.0001693]
[1767116592625,0.0113006,88586.0,88570.0,0.0001693]
[1767116592929,0.05668,88589.0,88570.0,0.0001693]
[1767116593321,0.0113004,88588.0,88570.0,0.0001693]
[1767116593819,0.0113007,88586.0,88570.0,0.0001693]
[1767116594322,0.0113007,88586.0,88551.0,0.09217771]
[1767116594323,0.05668,88589.0,88553.0,0.09604]
[1767116594521,0.05668,88589.0,88538.0,0.24008]
[1767116594522,0.0113028,88569.0,88551.0,0.09604]
[1767116594723,0.0113028,88569.0,88550.0,0.09604]
[1767116595029,0.0113024,88572.0,88551.0,0.011305]
[1767116595227,0.0001693,88570.0,88551.0,0.011305]
[1767116595427,0.0113028,88569.0,88550.0,0.09604]
[1767116595627,0.0113028,88569.0,88551.0,0.0113051]
[1767116596230,0.0001693,88570.0,88552.0,0.011305]
[1767116596529,0.0001693,88570.0,88550.0,0.09604]
[1767116597037,0.01133987,88596.0,88550.0,0.09604]
[1767116597038,0.05672,88578.0,88565.0,0.0113033]
[1767116597728,0.09604,88580.0,88565.0,0.0113033]
[1767116597930,0.05672,88580.0,88565.0,0.0113033]
[1767116598226,0.05672,88580.0,88564.0,0.0001693]
[1767116600222,0.05672,88580.0,88565.0,0.0113033]
[1767116600528,0.05672,88580.0,88564.0,0.0001693]
[1767116600722,0.05672,88580.0,88564.0,0.0114727]
[1767116601433,0.05672,88579.0,88564.0,0.0114727]
[1767116602429,0.05672,88579.0,88564.0,0.0001693]
[1767116606027,0.05668,88580.0,88565.0,0.0113033]
[1767116606229,0.05668,88580.0,88564.0,0.0001693]
[1767116606426,0.0113025,88572.0,88564.0,0.0001693]
[1767116606734,0.0113025,88572.0,88560.0,0.09604]
[1767116606938,0.0113021,88575.0,88560.0,0.09604]
[1767116608632,0.0113026,88571.0,88552.0,0.09604]
[1767116608832,0.0113026,88571.0,88547.0,0.05668]
[1767116608833,0.05668,88572.0,88549.0,0.0113052]
[1767116609233,0.05668,88572.0,88551.0,0.011305]
[1767116610338,0.0113026,88571.0,88553.0,0.0113048]
[1767116610938,0.0113029,88569.0,88549.0,0.0113052]
[1767116611731,0.0113029,88569.0,88549.0,0.0113053]
[1767116611930,0.0113029,88569.0,88547.0,0.15272]
[1767116612141,0.0679825,88572.0,88553.0,0.0113047]
[1767116612530,0.05668,88572.0,88547.0,0.15272]
[1767116613738,0.0113025,88571.0,88547.0,0.15272]
[1767116613938,0.0113025,88571.0,88553.0,0.0113047]
[1767116614333,0.0113025,88571.0,88550.0,0.0113051]
[1767116614532,0.0113025,88571.0,88552.0,0.0113049]
[1767116616142,0.0113029,88569.0,88552.0,0.0113049]
[1767116617134,0.011303,88568.0,88548.0,0.0113055]
[1767116617335,0.011303,88568.0,88547.0,0.15272]
[1767116617336,0.0113031,88558.0,88547.0,0.15272]
[1767116617735,0.011472,88561.0,88547.0,0.15272]
[1767116619439,0.0001693,88561.0,88550.0,0.16860413]
[1767116619834,0.0001693,88561.0,88550.0,0.17990813]
[1767116620939,0.0001693,88561.0,88550.0,0.011304]
[1767116621740,0.0001693,88561.0,88541.0,0.0113052]
[1767116621941,0.15272,88567.0,88550.0,0.16860413]
[1767116622240,0.0113015,88571.0,88550.0,0.16860413]
[1767116622446,0.05668,88570.0,88550.0,0.16860413]
[1767116622845,0.00016939,88569.0,88556.0,0.0113032]
[1767116623843,0.16860413,88580.0,88562.0,0.0113025]
[1767116624035,0.16860413,88580.0,88559.0,0.16860413]
[1767116624036,0.02471373,88579.0,88563.0,0.0113024]
[1767116624346,0.02471373,88578.0,88563.0,0.0113024]
[1767116624533,0.15272,88579.0,88563.0,0.0113024]
[1767116624937,0.15272,88579.0,88559.0,0.05668]
[1767116626142,0.16877352,88580.0,88559.0,0.05668]
[1767116626336,0.0113007,88577.0,88559.0,0.05668]
[1767116626542,0.0679806,88578.0,88559.0,0.0679829]
[1767116626947,0.0113008,88576.0,88559.0,0.0679829]
[1767116627542,0.0113011,88574.0,88559.0,0.05668]
[1767116627742,0.0113013,88572.0,88559.0,0.05668]
[1767116629253,0.05668,88578.0,88559.0,0.05668]
[1767116629552,0.0113008,88576.0,88560.0,0.0113027]
[1767116630652,0.0113011,88574.0,88559.0,0.05668]
[1767116632242,0.0113007,88577.0,88562.0,0.0113025]
[1767116632445,0.0113009,88575.0,88559.0,0.0679829]
[1767116634250,0.05668,88578.0,88559.0,0.05668]
[1767116634454,0.05668,88578.0,88563.0,0.0113024]
[1767116636559,0.05668,88578.0,88559.0,0.05668]
[1767116636748,0.05668,88578.0,88560.0,0.16860413]
[1767116638251,0.05668,88578.0,88564.0,0.0113022]
[1767116639258,0.05668,88578.0,88561.0,0.0113026]
[1767116639752,0.05668,88577.0,88561.0,0.0113026]
[1767116640555,0.05668,88577.0,88563.0,0.0113023]
[1767116641460,0.05668,88577.0,88560.0,0.16860413]
[1767116641665,0.05668,88578.0,88567.0,0.16860413]
[1767116641853,0.05668,88578.0,88566.0,0.011302]
[1767116643160,0.05668,88578.0,88563.0,0.0113023]
[1767116643362,0.05668,88578.0,88565.0,0.0113021]
[1767116643561,0.05668,88578.0,88559.0,0.05668]
[1767116643765,0.05668,88578.0,88560.0,0.16860413]
[1767116644262,0.05668,88578.0,88564.0,0.0113022]
[1767116645362,0.0113005,88578.0,88564.0,0.0113022]
[1767116646164,0.05668,88579.0,88564.0,0.0113022]
[1767116646563,0.0679804,88579.0,88564.0,0.0113022]
[1767116646965,0.0679804,88579.0,88561.0,0.0113026]
[1767116647166,0.0679804,88579.0,88563.0,0.0113024]
[1767116650863,0.0679804,88579.0,88565.0,0.011302]
[1767116651565,0.011301,88575.0,88561.0,0.0113025]
[1767116651770,0.05668,88579.0,88559.0,0.05668]
[1767116651970,0.02470927,88578.0,88560.0,0.0113028]
[1767116652168,0.05668,88579.0,88560.0,0.0113028]
[1767116652368,0.0247133,88578.0,88560.0,0.0113028]
[1767116652568,0.05668,88579.0,88560.0,0.0113028]
[1767116652765,0.02471346,88578.0,88560.0,0.0113028]
[1767116652968,0.05668,88579.0,88560.0,0.0113028]
[1767116653170,0.011301,88575.0,88560.0,0.0113028]
[1767116660773,0.0113008,88576.0,88560.0,0.0113027]
[1767116662780,0.16877352,88580.0,88554.0,0.05664]
[1767116662979,0.09604,88591.0,88570.0,0.16860413]
[1767116663273,0.15268,88590.0,88580.0,0.0113002]
[1767116663475,0.05664,88589.0,88580.0,0.0113002]
[1767116663680,0.16860413,88590.0,88579.0,0.0113003]
[1767116663876,0.08134247,88589.0,88579.0,0.0113003]
[1767116664078,0.08134247,88589.0,88576.0,0.00016939]
[1767116664079,0.05664,88589.0,88576.0,0.01147009]
[1767116664379,0.05664,88589.0,88578.0,0.0113005]
[1767116664975,0.05664,88589.0,88576.0,0.00016939]
[1767116665373,0.05664,88589.0,88577.0,0.0113006]
[1767116666170,0.05664,88589.0,88576.0,0.00016939]
[1767116666370,0.0679392,88589.0,88576.0,0.00016939]
[1767116667480,0.05664,88589.0,88576.0,0.00016939]
[1767116668777,0.06071923,88610.0,88587.0,0.0112993]
[1767116668978,0.33720826,88597.0,88549.0,0.08087261]
[1767116669281,0.0113006,88578.0,88560.0,0.0113027]
[1767116669482,0.05668,88577.0,88557.0,0.0113032]
[1767116669677,0.0113008,88576.0,88557.0,0.0113032]
[1767116669877,0.0113011,88574.0,88557.0,0.0113032]
[1767116670078,0.01147049,88574.0,88557.0,0.01147259]
[1767116670876,0.00016939,88574.0,88557.0,0.01147249]
[1767116672680,0.00016939,88574.0,88557.0,0.00016939]
[1767116672986,0.00016939,88574.0,88559.0,0.0113028]
[1767116675085,0.00016939,88574.0,88560.0,0.0113027]
[1767116675288,0.00016939,88574.0,88561.0,0.0113026]
[1767116677988,0.00016939,88574.0,88558.0,0.011303]
[1767116678488,0.0113002,88581.0,88563.0,0.0113023]
[1767116678694,0.05668,88583.0,88565.0,0.0113021]
[1767116678893,0.0113,88582.0,88565.0,0.0113021]
[1767116679484,0.0113,88582.0,88565.0,0.01147149]
[1767116679684,0.0113006,88578.0,88565.0,0.00016939]
[1767116680991,0.00016939,88582.0,88565.0,0.01147159]
[1767116681892,0.0113002,88581.0,88565.0,0.01147159]
[1767116682092,0.0113006,88578.0,88565.0,0.00016939]
[1767116683294,0.0113002,88581.0,88565.0,0.00016939]
[1767116687201,0.0113002,88581.0,88566.0,0.011302]
[1767116687796,0.0113002,88581.0,88565.0,0.00016939]
[1767116688796,0.0113002,88581.0,88565.0,0.01147149]
[1767116689001,0.00016939,88582.0,88565.0,0.01147149]
[1767116689704,0.00016939,88582.0,88567.0,0.0113018]
[1767116689903,0.01146939,88582.0,88567.0,0.0113018]
[1767116690101,0.00016939,88582.0,88567.0,0.0113018]